[Event "Nové Hrady - Open"]
[Site "Nové Hrady, Czech Republic"]
[Date "2023.08.16"]
[Round "4.10"]
[White "Steinbauer, Sebastián"]
[Black "Mácová, Markéta"]
[Result "1-0"]
[TimeControl "2x90min+30s"]
[WhiteFideId "399272"]
[BlackFideId "23715588"]
[WhiteElo "1782"]
[BlackElo "1304"]

1. e4 {[%clk 01:30:57]} {[%emt 00:00:04]} e5 {[%clk 01:30:38]} {[%emt
00:00:22]} 2. Nf3 {[%clk 01:31:21]} {[%emt 00:00:06]} Nc6 {[%clk 01:31:01]}
{[%emt 00:00:07]} 3. Bc4 {[%clk 01:31:49]} {[%emt 00:00:02]} Nf6 {[%clk
01:29:37]} {[%emt 00:01:54]} 4. Ng5 {[%clk 01:32:13]} {[%emt 00:00:07]} d5
{[%clk 01:29:37]} {[%emt 00:00:29]} 5. exd5 {[%clk 01:32:41]} Nxd5 {[%clk
01:27:55]} {[%emt 00:02:13]} 6. d4 {[%clk 01:32:08]} {[%emt 00:01:05]} Be6
{[%clk 01:26:41]} {[%emt 00:01:43]} 7. O-O {[%clk 01:31:14]} {[%emt 00:01:24]}
Be7 {[%clk 01:21:16]} {[%emt 00:05:54]} 8. Nxe6 {[%clk 01:31:10]} {[%emt
00:00:34]} fxe6 {[%clk 01:21:25]} {[%emt 00:00:22]} 9. dxe5 {[%clk 01:31:37]}
{[%emt 00:00:03]} Nxe5 {[%clk 01:18:19]} {[%emt 00:03:36]} 10. Qh5+ {[%clk
01:32:05]} {[%emt 00:00:02]} Nf7 {[%clk 01:16:56]} {[%emt 00:01:53]} 11. Qg4
{[%clk 01:29:56]} {[%emt 00:02:39]} O-O {[%clk 01:14:07]} {[%emt 00:03:19]} 12.
Qxe6 {[%clk 01:28:47]} {[%emt 00:12:33]} Nb6 {[%clk 01:12:55]} 13. Bb3 {[%clk
01:29:15]} Bf6 {[%clk 01:10:32]} 14. Nc3 {[%clk 01:29:13]} Qd7 {[%clk
01:07:02]} 15. Bf4 {[%clk 01:29:09]} Qxe6 {[%clk 01:05:58]} {[%emt 00:00:22]}
16. Bxe6 {[%clk 01:29:28]} {[%emt 00:00:11]} c6 {[%clk 01:06:11]} {[%emt
00:00:17]} 17. Rad1 {[%clk 01:28:01]} {[%emt 00:01:57]} Rae8 {[%clk 01:06:04]}
{[%emt 00:00:37]} 18. Bb3 {[%clk 01:28:15]} {[%emt 00:00:16]} Kh8 {[%clk
01:05:02]} {[%emt 00:01:33]} 19. Rfe1 {[%clk 01:27:12]} {[%emt 00:01:32]} Rxe1+
{[%clk 01:01:06]} {[%emt 00:04:26]} 20. Rxe1 {[%clk 01:27:33]} {[%emt
00:00:09]} Nd8 {[%clk 01:00:00]} {[%emt 00:01:36]} 21. Bd6 {[%clk 01:27:10]}
{[%emt 00:00:53]} Bxc3 {[%clk 00:59:04]} {[%emt 00:01:27]} 22. bxc3 {[%clk
01:27:35]} {[%emt 00:00:05]} Ne6 {[%clk 00:55:24]} {[%emt 00:04:09]} 23. Bxf8
{[%clk 01:27:56]} {[%emt 00:00:08]} Nxf8 {[%clk 00:55:11]} {[%emt 00:00:43]} 24.
Re8 {[%clk 01:28:20]} {[%emt 00:00:07]} Nbd7 {[%clk 00:54:33]} {[%emt
00:01:08]} 25. Be6 {[%clk 01:28:45]} {[%emt 00:00:04]} h6 {[%clk 00:54:24]}
{[%emt 00:00:40]} 26. Bxd7 {[%clk 01:29:08]} {[%emt 00:00:07]} 1-0

[Event "Nové Hrady - Open"]
[Site "Nové Hrady, Czech Republic"]
[Date "2023.08.17"]
[Round "5.1"]
[White "Urban, Zdeněk"]
[Black "Babula, Milan"]
[Result "1-0"]
[TimeControl "2x90min+30s"]
[WhiteFideId "312754"]
[BlackFideId "300632"]
[WhiteElo "2118"]
[BlackElo "2087"]

1. c4 {[%clk 01:30:58]} {[%emt 00:00:02]} Nf6 {[%clk 01:30:56]} {[%emt
00:00:05]} 2. Nc3 {[%clk 01:31:15]} {[%emt 00:00:12]} g6 {[%clk 01:31:03]}
{[%emt 00:00:23]} 3. e4 {[%clk 01:31:32]} {[%emt 00:00:13]} d6 {[%clk
01:31:09]} {[%emt 00:00:24]} 4. d4 {[%clk 01:31:53]} {[%emt 00:00:09]} Bg7
{[%clk 01:31:06]} {[%emt 00:00:34]} 5. Nf3 {[%clk 01:32:17]} {[%emt 00:00:05]}
O-O {[%clk 01:30:41]} {[%emt 00:00:55]} 6. Be2 {[%clk 01:32:40]} {[%emt
00:00:06]} Nbd7 {[%clk 01:30:46]} {[%emt 00:00:26]} 7. Be3 {[%clk 01:29:22]}
{[%emt 00:03:47]} e5 {[%clk 01:28:27]} {[%emt 00:02:50]} 8. d5 {[%clk
01:29:15]} {[%emt 00:00:37]} Ng4 {[%clk 01:18:01]} {[%emt 00:10:56]} 9. Bg5
{[%clk 01:29:33]} {[%emt 00:00:12]} f6 {[%clk 01:18:25]} {[%emt 00:00:06]} 10.
Bc1 {[%clk 01:30:01]} {[%emt 00:00:02]} Nh6 {[%clk 01:17:41]} {[%emt 00:01:14]}
11. h4 {[%clk 01:29:30]} {[%emt 00:01:00]} a5 {[%clk 01:09:35]} {[%emt
00:08:37]} 12. Ng1 {[%clk 01:25:25]} {[%emt 00:04:34]} f5 {[%clk 01:06:34]}
{[%emt 00:03:32]} 13. Bg5 {[%clk 01:24:05]} {[%emt 00:01:49]} Nf6 {[%clk
01:06:18]} {[%emt 00:00:47]} 14. h5 {[%clk 01:22:47]} {[%emt 00:01:47]} Nf7
{[%clk 01:06:31]} {[%emt 00:00:17]} 15. Bd2 {[%clk 01:20:40]} {[%emt 00:02:35]}
Nxe4 {[%clk 01:01:42]} {[%emt 00:05:21]} 16. Nxe4 {[%emt 00:01:23]} fxe4 {[%emt
00:00:02]} 17. hxg6 {[%clk 01:19:35]} {[%emt 00:00:10]} hxg6 {[%clk 01:02:07]}
{[%emt 00:00:06]} 18. Bg4 {[%clk 01:17:17]} {[%emt 00:02:47]} Qf6 {[%clk
01:01:20]} {[%emt 00:01:18]} 19. Bxc8 {[%clk 01:17:05]} {[%emt 00:00:42]} Rfxc8
{[%clk 01:01:43]} {[%emt 00:00:07]} 20. Qg4 {[%clk 01:13:08]} {[%emt 00:04:26]}
Qf5 {[%clk 01:02:02]} {[%emt 00:00:12]} 21. Qh4 {[%clk 01:13:02]} {[%emt
00:00:35]} c6 {[%clk 01:00:13]} {[%emt 00:02:20]} 22. Ne2 {[%clk 01:11:44]}
{[%emt 00:01:47]} Bf6 {[%clk 00:57:48]} {[%emt 00:02:56]} 23. Qh7+ {[%clk
01:07:47]} {[%emt 00:04:27]} Kf8 {[%clk 00:58:16]} 24. Ng3 {[%clk 01:07:46]}
{[%emt 00:00:31]} Qg4 {[%clk 00:58:18]} {[%emt 00:00:30]} 25. Qh3 {[%clk
01:08:02]} {[%emt 00:00:13]} Qxh3 {[%clk 00:57:33]} {[%emt 00:01:16]} 26. Rxh3
{[%clk 01:06:30]} {[%emt 00:02:01]} cxd5 {[%clk 00:56:50]} {[%emt 00:01:15]} 27.
cxd5 {[%clk 01:06:56]} {[%emt 00:00:03]} Rc4 {[%clk 00:55:14]} {[%emt
00:02:06]} 28. b3 {[%clk 01:03:59]} {[%emt 00:03:26]} Rd4 {[%clk 00:55:10]}
{[%emt 00:00:35]} 29. Be3 {[%clk 01:03:30]} {[%emt 00:00:59]} Rb4 {[%clk
00:47:34]} {[%emt 00:08:06]} 30. a3 {[%clk 01:03:21]} {[%emt 00:00:38]} Rxb3
{[%clk 00:46:54]} {[%emt 00:01:11]} 31. Nxe4 {[%clk 01:03:43]} {[%emt
00:00:08]} Bg7 {[%clk 00:46:49]} {[%emt 00:00:35]} 32. Rc1 {[%clk 00:59:55]}
{[%emt 00:04:18]} a4 {[%clk 00:44:02]} {[%emt 00:03:17]} 33. Rc7 {[%clk
00:57:49]} {[%emt 00:02:35]} Kg8 {[%clk 00:44:22]} {[%emt 00:00:11]} 34. Rg3
{[%clk 00:56:10]} {[%emt 00:02:08]} Rb1+ {[%clk 00:39:05]} {[%emt 00:05:47]} 35.
Kd2 {[%clk 00:53:38]} {[%emt 00:03:02]} Nh8 {[%clk 00:31:34]} {[%emt 00:08:02]}
36. Kc2 {[%clk 00:52:53]} {[%emt 00:01:14]} Rb5 {[%clk 00:29:47]} {[%emt
00:02:17]} 37. Nxd6 {[%clk 00:52:43]} {[%emt 00:00:40]} Rxd5 {[%clk 00:30:00]}
{[%emt 00:00:18]} 38. Nf5 {[%clk 00:49:45]} {[%emt 00:03:27]} Bf6 {[%clk
00:26:40]} {[%emt 00:03:51]} 39. Nh6+ {[%clk 00:49:36]} {[%emt 00:00:38]} Kf8
{[%clk 00:27:07]} {[%emt 00:00:03]} 40. Rf3 {[%clk 00:49:49]} {[%emt 00:00:18]}
Ra6 {[%clk 00:26:25]} {[%emt 00:01:12]} 41. Ng4 {[%clk 00:49:44]} {[%emt
00:00:34]} Rdd6 {[%clk 00:23:09]} {[%emt 00:03:47]} 42. Bc5 {[%clk 00:50:00]}
{[%emt 00:00:13]} 1-0

[Event "Nové Hrady - Open"]
[Site "Nové Hrady, Czech Republic"]
[Date "2023.08.17"]
[Round "5.2"]
[White "Žilavý, Jan"]
[Black "Slabý, Matěj"]
[Result "1-0"]
[TimeControl "2x90min+30s"]
[WhiteFideId "350141"]
[BlackFideId "23734876"]
[WhiteElo "2130"]
[BlackElo "1894"]

1. d4 {[%clk 01:30:55]} {[%emt 00:00:05]} d5 {[%clk 01:30:55]} {[%emt
00:00:05]} 2. c4 {[%clk 01:31:20]} {[%emt 00:00:06]} Nc6 {[%clk 01:31:18]}
{[%emt 00:00:07]} 3. Nf3 {[%clk 01:30:46]} {[%emt 00:01:03]} Bg4 {[%clk
01:31:41]} {[%emt 00:00:07]} 4. Nc3 {[%clk 01:27:42]} {[%emt 00:03:35]} e6
{[%clk 01:26:42]} {[%emt 00:05:29]} 5. Bf4 {[%clk 01:20:14]} {[%emt 00:07:57]}
dxc4 {[%clk 01:14:22]} {[%emt 00:12:51]} 6. e3 {[%clk 01:19:18]} {[%emt
00:01:25]} Bd6 {[%clk 01:12:53]} {[%emt 00:02:00]} 7. Bxd6 {[%clk 01:18:51]}
{[%emt 00:00:56]} Qxd6 {[%clk 01:13:07]} {[%emt 00:00:17]} 8. Bxc4 {[%clk
01:14:32]} {[%emt 00:04:47]} Nf6 {[%clk 01:13:32]} {[%emt 00:00:05]} 9. h3
{[%clk 01:12:47]} {[%emt 00:02:16]} Bh5 {[%clk 01:11:41]} {[%emt 00:02:22]} 10.
O-O {[%clk 01:11:07]} {[%emt 00:02:08]} O-O {[%emt 00:04:16]} 11. Rc1 {[%clk
01:08:12]} {[%emt 00:01:19]} a6 {[%clk 01:03:59]} {[%emt 00:06:34]} 12. Bd3
{[%clk 01:04:18]} {[%emt 00:04:24]} e5 {[%clk 00:42:10]} {[%emt 00:22:19]} 13.
Ne4 {[%clk 01:00:58]} {[%emt 00:03:49]} Nxe4 {[%clk 00:39:59]} {[%emt
00:02:42]} 14. Bxe4 {[%clk 01:01:22]} {[%emt 00:00:05]} exd4 {[%clk 00:39:58]}
{[%emt 00:00:31]} 15. Bxc6 {[%clk 01:00:23]} {[%emt 00:01:30]} bxc6 {[%clk
00:40:23]} {[%emt 00:00:05]} 16. g4 {[%clk 00:57:08]} {[%emt 00:03:45]} Bg6
{[%clk 00:40:48]} {[%emt 00:00:05]} 17. Qxd4 {[%clk 00:56:44]} {[%emt
00:00:53]} Qe6 {[%clk 00:38:40]} {[%emt 00:02:38]} 18. Rfd1 {[%clk 00:45:22]}
{[%emt 00:11:52]} Qxa2 {[%clk 00:25:45]} {[%emt 00:13:26]} 19. Ne5 {[%clk
00:43:14]} {[%emt 00:02:38]} Rfe8 {[%clk 00:20:35]} {[%emt 00:05:39]} 20. Rxc6
{[%clk 00:41:07]} {[%emt 00:02:37]} Rab8 {[%clk 00:18:37]} {[%emt 00:02:28]} 21.
Rxc7 {[%clk 00:36:22]} {[%emt 00:05:15]} Qxb2 {[%clk 00:18:40]} {[%emt
00:00:27]} 22. Qxb2 {[%clk 00:34:13]} {[%emt 00:02:39]} Rxb2 {[%clk 00:19:05]}
{[%emt 00:00:05]} 23. Rdd7 {[%clk 00:33:25]} {[%emt 00:01:18]} Rf8 {[%clk
00:19:15]} {[%emt 00:00:20]} 24. f4 {[%clk 00:32:55]} {[%emt 00:01:00]} Rb5
{[%clk 00:15:35]} {[%emt 00:04:11]} 25. Kf2 {[%clk 00:30:59]} {[%emt 00:02:26]}
Be4 {[%clk 00:11:00]} {[%emt 00:05:04]} 26. Nxf7 {[%clk 00:30:43]} {[%emt
00:00:46]} 1-0

[Event "Nové Hrady - Open"]
[Site "Nové Hrady, Czech Republic"]
[Date "2023.08.17"]
[Round "5.3"]
[White "Pospěch, Radim"]
[Black "Bosák, Jan"]
[Result "0-1"]
[TimeControl "2x90min+30s"]
[WhiteFideId "329835"]
[BlackFideId "314692"]
[WhiteElo "1874"]
[BlackElo "2082"]

1. d4 {[%clk 01:30:57]} {[%emt 00:00:02]} Nf6 {[%clk 01:30:51]} {[%emt
00:00:09]} 2. c4 {[%clk 01:31:17]} {[%emt 00:00:09]} g6 {[%clk 01:31:15]}
{[%emt 00:00:06]} 3. Nc3 {[%clk 01:31:25]} {[%emt 00:00:23]} d5 {[%clk
01:31:36]} {[%emt 00:00:09]} 4. e3 {[%clk 01:30:05]} {[%emt 00:01:51]} Bg7
{[%clk 01:31:07]} {[%emt 00:00:59]} 5. Qb3 {[%clk 01:30:04]} {[%emt 00:00:30]}
c6 {[%clk 01:28:46]} {[%emt 00:02:51]} 6. Nf3 {[%clk 01:28:33]} {[%emt
00:02:01]} O-O {[%clk 01:28:34]} {[%emt 00:00:41]} 7. Be2 {[%clk 01:23:33]}
{[%emt 00:05:31]} dxc4 {[%clk 01:22:44]} {[%emt 00:06:21]} 8. Bxc4 {[%clk
01:23:51]} {[%emt 00:00:11]} b5 {[%clk 01:22:51]} {[%emt 00:00:24]} 9. Bd3
{[%clk 01:16:09]} {[%emt 00:08:11]} Na6 {[%clk 01:06:34]} {[%emt 00:16:48]} 10.
O-O {[%clk 01:07:21]} {[%emt 00:09:17]} Be6 {[%clk 01:02:29]} {[%emt 00:04:36]}
11. Qd1 {[%clk 01:06:52]} {[%emt 00:00:58]} Nb4 {[%clk 01:01:04]} {[%emt
00:01:56]} 12. Bb1 {[%clk 01:06:55]} {[%emt 00:00:26]} Qb6 {[%clk 00:55:31]}
{[%emt 00:06:03]} 13. e4 {[%clk 00:54:34]} {[%emt 00:12:51]} Rfd8 {[%clk
00:53:35]} {[%emt 00:02:25]} 14. a3 {[%clk 00:50:26]} {[%emt 00:04:40]} Na6
{[%clk 00:53:22]} {[%emt 00:00:43]} 15. h3 {[%clk 00:49:20]} {[%emt 00:01:35]}
Bc4 {[%clk 00:45:49]} {[%emt 00:08:03]} 16. Re1 {[%clk 00:49:14]} {[%emt
00:00:35]} c5 {[%clk 00:45:35]} {[%emt 00:00:45]} 17. d5 {[%clk 00:46:48]}
{[%emt 00:02:57]} b4 {[%clk 00:44:57]} {[%emt 00:01:08]} 18. axb4 {[%clk
00:42:41]} {[%emt 00:04:37]} Nxb4 {[%clk 00:43:07]} {[%emt 00:02:19]} 19. Be3
{[%clk 00:39:24]} {[%emt 00:03:47]} Rac8 {[%clk 00:42:43]} {[%emt 00:00:55]} 20.
Na4 {[%clk 00:34:42]} {[%emt 00:05:11]} Qb5 {[%clk 00:42:09]} {[%emt 00:01:04]}
21. Nc3 {[%clk 00:35:08]} {[%emt 00:00:04]} Qb7 {[%clk 00:41:07]} {[%emt
00:01:16]} 22. Ra5 {[%clk 00:26:06]} {[%emt 00:09:47]} Qb6 {[%clk 00:38:52]}
{[%emt 00:02:45]} 23. Ra3 {[%clk 00:25:44]} {[%emt 00:00:52]} e6 {[%clk
00:36:34]} {[%emt 00:02:49]} 24. Na4 {[%clk 00:21:22]} {[%emt 00:04:52]} Qb8
{[%clk 00:35:59]} {[%emt 00:01:05]} 25. b3 {[%clk 00:12:34]} {[%emt 00:09:18]}
Bb5 {[%clk 00:33:09]} {[%emt 00:03:19]} 26. Nxc5 {[%clk 00:07:45]} {[%emt
00:05:20]} exd5 {[%clk 00:32:20]} {[%emt 00:01:19]} 27. e5 {[%clk 00:04:38]}
{[%emt 00:03:37]} Ne4 {[%clk 00:29:26]} {[%emt 00:03:24]} 28. Na4 {[%clk
00:01:52]} {[%emt 00:03:17]} Nc6 {[%clk 00:26:03]} {[%emt 00:03:53]} 29. Bd4
{[%emt 00:00:44]} Nxd4 {[%clk 00:23:34]} {[%emt 00:02:56]} 30. Qxd4 {[%clk
00:02:03]} {[%emt 00:00:07]} Bxa4 {[%clk 00:22:42]} {[%emt 00:01:23]} 31. Bxe4
{[%emt 00:02:42]} dxe4 {[%clk 00:22:06]} {[%emt 00:00:21]} 32. Qxe4 {[%clk
00:01:05]} Bc6 {[%clk 00:21:56]} {[%emt 00:00:39]} 33. Qe3 {[%clk 00:01:27]}
{[%emt 00:00:07]} Qb6 {[%clk 00:20:27]} {[%emt 00:02:00]} 34. Qf4 {[%clk
00:00:35]} {[%emt 00:01:22]} Bd5 {[%clk 00:19:17]} {[%emt 00:01:40]} 35. Nd4
{[%clk 00:00:31]} {[%emt 00:00:35]} Bf8 {[%clk 00:17:57]} {[%emt 00:01:49]} 36.
Raa1 {[%clk 00:00:56]} {[%emt 00:00:05]} Bb4 {[%clk 00:16:26]} {[%emt
00:02:01]} 37. Rec1 {[%clk 00:00:58]} {[%emt 00:00:29]} Bc3 {[%clk 00:16:11]}
{[%emt 00:00:45]} 0-1

[Event "Nové Hrady - Open"]
[Site "Nové Hrady, Czech Republic"]
[Date "2023.08.17"]
[Round "5.4"]
[White "Šimůnek, Jakub Šimon"]
[Black "Šedivý, Karel"]
[Result "1-0"]
[TimeControl "2x90min+30s"]
[WhiteFideId "23709464"]
[BlackFideId "359653"]
[WhiteElo "1921"]
[BlackElo "1583"]

1. e4 {[%clk 01:30:56]} {[%emt 00:00:04]} c6 {[%clk 01:30:42]} {[%emt
00:00:25]} 2. d4 {[%clk 01:31:21]} d5 {[%clk 01:31:04]} {[%emt 00:00:07]} 3. e5
{[%clk 01:31:48]} {[%emt 00:00:03]} Bf5 {[%clk 01:31:11]} {[%emt 00:00:23]} 4.
Nf3 {[%clk 01:32:13]} {[%emt 00:00:05]} e6 {[%clk 01:31:23]} {[%emt 00:00:17]}
5. Be2 {[%clk 01:32:39]} {[%emt 00:00:04]} c5 {[%clk 01:29:17]} {[%emt
00:02:36]} 6. Be3 {[%clk 01:33:00]} {[%emt 00:00:10]} Nc6 {[%clk 01:28:15]}
{[%emt 00:01:32]} 7. O-O {[%clk 01:33:21]} {[%emt 00:00:08]} Qc7 {[%clk
01:25:43]} {[%emt 00:03:02]} 8. c3 {[%clk 01:30:02]} {[%emt 00:03:50]} f6
{[%clk 01:18:20]} {[%emt 00:07:53]} 9. exf6 {[%clk 01:27:04]} {[%emt 00:03:28]}
cxd4 {[%clk 01:13:12]} {[%emt 00:05:39]} 10. fxg7 {[%clk 01:21:33]} {[%emt
00:06:00]} Bxg7 {[%clk 01:12:49]} {[%emt 00:00:52]} 11. Nxd4 {[%clk 01:21:56]}
{[%emt 00:00:07]} Nxd4 {[%clk 01:09:42]} {[%emt 00:03:38]} 12. Bxd4 {[%clk
01:22:16]} {[%emt 00:00:10]} Nf6 {[%clk 01:06:19]} {[%emt 00:03:52]} 13. Bb5+
{[%clk 01:18:35]} {[%emt 00:04:12]} Kf7 {[%clk 01:05:11]} {[%emt 00:01:39]} 14.
h3 {[%clk 01:16:49]} {[%emt 00:02:15]} h5 {[%clk 01:03:37]} {[%emt 00:02:03]}
15. Nd2 {[%clk 01:08:43]} {[%emt 00:08:36]} e5 {[%clk 01:01:41]} {[%emt
00:02:27]} 16. Be3 {[%clk 01:08:05]} {[%emt 00:01:08]} Rad8 {[%clk 00:51:54]}
{[%emt 00:10:17]} 17. Nf3 {[%clk 01:05:57]} {[%emt 00:02:38]} e4 {[%clk
00:49:08]} {[%emt 00:03:16]} 18. Ng5+ {[%clk 01:00:00]} {[%emt 00:06:27]} Kg6
{[%clk 00:49:09]} {[%emt 00:00:28]} 19. Qd2 {[%clk 01:00:19]} {[%emt 00:00:11]}
Ng4 {[%clk 00:45:47]} {[%emt 00:03:52]} 20. hxg4 {[%clk 00:51:52]} {[%emt
00:08:57]} hxg4 {[%clk 00:45:58]} {[%emt 00:00:19]} 21. g3 {[%clk 00:52:19]}
{[%emt 00:00:04]} Rh5 {[%clk 00:44:43]} {[%emt 00:01:45]} 22. Kg2 {[%clk
00:52:25]} {[%emt 00:00:24]} Bh6 {[%clk 00:44:11]} {[%emt 00:01:01]} 23. Rh1
{[%clk 00:51:59]} {[%emt 00:00:56]} Rxh1 {[%clk 00:38:59]} {[%emt 00:05:42]} 24.
Rxh1 {[%clk 00:52:16]} {[%emt 00:00:12]} Qe7 {[%clk 00:39:03]} {[%emt
00:00:33]} 25. Rxh6+ {[%clk 00:51:29]} {[%emt 00:01:11]} Kxh6 {[%clk 00:39:02]}
{[%emt 00:00:32]} 26. Nf7+ {[%clk 00:51:53]} {[%emt 00:00:06]} Kg6 {[%clk
00:38:57]} {[%emt 00:00:34]} 27. Nxd8 {[%clk 00:52:15]} {[%emt 00:00:08]} Qh7
{[%clk 00:37:54]} {[%emt 00:01:33]} 28. Qxd5 {[%emt 00:02:09]} 1-0

[Event "Nové Hrady - Open"]
[Site "Nové Hrady, Czech Republic"]
[Date "2023.08.17"]
[Round "5.5"]
[White "Hokr, Matyáš"]
[Black "Matyska, Jiří"]
[Result "1-0"]
[TimeControl "2x90min+30s"]
[WhiteFideId "23734663"]
[BlackFideId "309370"]
[WhiteElo "1228"]
[BlackElo "1852"]

1. Nf3 {[%clk 01:30:55]} {[%emt 00:00:04]} Nf6 {[%clk 01:30:50]} {[%emt
00:00:11]} 2. b3 {[%clk 01:30:45]} {[%emt 00:00:40]} b6 {[%clk 01:31:08]}
{[%emt 00:00:11]} 3. g3 {[%clk 01:30:41]} {[%emt 00:00:35]} Bb7 {[%clk
01:31:24]} {[%emt 00:00:14]} 4. Bg2 {[%clk 01:29:53]} {[%emt 00:01:17]} e6
{[%clk 01:30:55]} {[%emt 00:00:59]} 5. O-O {[%clk 01:29:39]} {[%emt 00:00:44]}
c5 {[%clk 01:31:00]} {[%emt 00:00:25]} 6. Bb2 {[%clk 01:29:45]} {[%emt
00:00:25]} Be7 {[%clk 01:30:37]} {[%emt 00:00:52]} 7. c4 {[%clk 01:28:58]}
{[%emt 00:01:17]} O-O {[%clk 01:30:48]} {[%emt 00:00:19]} 8. e3 {[%clk
01:25:30]} {[%emt 00:03:59]} Qc8 {[%clk 01:29:23]} {[%emt 00:01:55]} 9. Qc2
{[%clk 01:23:27]} {[%emt 00:02:33]} Nc6 {[%clk 01:24:06]} {[%emt 00:05:47]} 10.
Nc3 {[%clk 01:22:00]} {[%emt 00:01:56]} Rd8 {[%clk 01:15:02]} {[%emt 00:09:34]}
11. Rad1 {[%clk 01:17:16]} {[%emt 00:05:14]} d5 {[%clk 01:13:43]} {[%emt
00:01:49]} 12. d4 {[%clk 01:15:31]} {[%emt 00:02:16]} dxc4 {[%clk 01:12:32]}
{[%emt 00:01:41]} 13. bxc4 {[%clk 01:15:17]} {[%emt 00:00:43]} Nb4 {[%clk
01:12:50]} {[%emt 00:00:13]} 14. Qb3 {[%clk 01:14:43]} {[%emt 00:01:03]} Nc6
{[%clk 01:05:14]} {[%emt 00:08:06]} 15. dxc5 {[%clk 01:09:54]} {[%emt
00:05:20]} Na5 {[%clk 01:05:15]} {[%emt 00:00:29]} 16. Rxd8+ {[%clk 01:09:48]}
{[%emt 00:00:36]} Qxd8 {[%clk 01:04:25]} {[%emt 00:01:19]} 17. Qc2 {[%clk
01:09:03]} {[%emt 00:01:14]} Bxc5 {[%clk 01:02:55]} {[%emt 00:02:01]} 18. Nb5
{[%clk 01:07:21]} {[%emt 00:02:12]} Qe7 {[%clk 01:00:47]} {[%emt 00:02:39]} 19.
Bd4 {[%clk 01:01:42]} {[%emt 00:06:08]} Be4 {[%clk 01:00:01]} {[%emt 00:01:16]}
20. Bxf6 {[%clk 00:59:27]} {[%emt 00:02:45]} Bxc2 {[%clk 01:00:16]} {[%emt
00:00:15]} 21. Bxe7 {[%clk 00:59:46]} {[%emt 00:00:11]} Bxe7 {[%clk 01:00:45]}
{[%emt 00:00:02]} 22. Nfd4 {[%clk 00:59:21]} {[%emt 00:00:54]} Rc8 {[%clk
00:57:54]} {[%emt 00:03:22]} 23. Nxc2 {[%clk 00:59:36]} {[%emt 00:00:15]} Rxc4
{[%clk 00:58:17]} {[%emt 00:00:05]} 24. Rc1 {[%clk 00:57:12]} {[%emt 00:02:55]}
a6 {[%clk 00:58:06]} {[%emt 00:00:41]} 25. Nbd4 {[%clk 00:55:52]} {[%emt
00:01:49]} g6 {[%clk 00:57:43]} {[%emt 00:00:54]} 26. Bf1 {[%clk 00:55:30]}
{[%emt 00:00:52]} Ra4 {[%clk 00:54:21]} {[%emt 00:03:53]} 27. Ne1 {[%clk
00:55:27]} {[%emt 00:00:32]} Bc5 {[%clk 00:51:51]} {[%emt 00:03:00]} 28. Nef3
{[%clk 00:53:45]} {[%emt 00:02:12]} Rxa2 {[%clk 00:52:06]} {[%emt 00:00:15]} 29.
Bxa6 {[%clk 00:53:52]} {[%emt 00:00:24]} Kg7 {[%emt 00:04:41]} 30. Bc4 {[%clk
00:52:20]} {[%emt 00:01:27]} Ra4 {[%clk 00:47:25]} {[%emt 00:01:34]} 31. Bxe6
{[%emt 00:03:28]} Bxd4 {[%clk 00:46:39]} {[%emt 00:00:34]} 32. Rc7 {[%emt
00:05:55]} Kf6 {[%clk 00:40:53]} {[%emt 00:03:37]} 33. Nxd4 {[%clk 00:45:33]}
{[%emt 00:02:15]} Rxd4 {[%clk 00:41:11]} {[%emt 00:00:11]} 34. exd4 {[%clk
00:45:47]} {[%emt 00:00:17]} Kxe6 {[%clk 00:41:35]} {[%emt 00:00:06]} 35. Kf1
{[%clk 00:45:57]} {[%emt 00:00:21]} h5 {[%clk 00:40:05]} {[%emt 00:01:59]} 36.
Ke2 {[%clk 00:46:10]} {[%emt 00:00:17]} b5 {[%clk 00:38:00]} {[%emt 00:02:35]}
37. Kd3 {[%clk 00:45:04]} {[%emt 00:01:36]} f6 {[%clk 00:35:18]} {[%emt
00:03:12]} 38. Rc5 {[%clk 00:45:04]} {[%emt 00:00:31]} Nb7 {[%clk 00:35:10]}
{[%emt 00:00:37]} 39. Rxb5 {[%clk 00:45:21]} {[%emt 00:00:13]} Nd6 {[%clk
00:35:39]} 40. Rb6 {[%clk 00:44:47]} {[%emt 00:01:04]} Kd5 {[%clk 00:35:57]}
{[%emt 00:00:12]} 41. Rxd6+ {[%clk 00:44:30]} {[%emt 00:00:48]} 1-0